Cogmind - Beta 13 *** ADVENTURER MODE // 2024.05.23 @ 01:38:38 Player: Insider Result: Self-destructed Performance ------------- Evolutions (1) 500 Regions Visited (2) 400 Robots Destroyed (29) 145 Value Destroyed (580) 580 Prototype IDs (0) 0 Alien Tech Used (0) 0 Bonus (0) 0 TOTAL SCORE: 1625 Bonus ------- None Cogmind --------- Core Integrity 366/400 Matter 4/300 Energy 265/265 System Corruption 0% Temperature Cool (0) Movement Treading (240) Ox1 Location -9/Materials Parts ------- > --- POWER (1) -------- Reinforced Ion Engine > --- PROPULSION (2) --- Light Treads Light Treads > --- UTILITY (3) ------ Heat Sink High-capacity Storage Unit Visual Processing Unit > --- WEAPON (3) ------- Light Assault Rifle Light Cannon Light Cannon > --- INVENTORY (20) --- Light Ion Engine Backup Propulsion I Sensor Array ECM Suite ECM Suite Shield Generator Peak State ------------ > --- POWER ------------ Reinforced Ion Engine > --- PROPULSION ------- Light Treads Light Treads > --- UTILITY ---------- Heat Sink High-capacity Storage Unit Visual Processing Unit > --- WEAPON ----------- Light Assault Rifle Light Cannon Grenade Launcher > --- INVENTORY -------- Light Ion Engine ECM Suite ECM Suite Light Cannon [Rating: 11] Favorites ----------- Power Reinforced Ion Engine Engine Reinforced Ion Engine Propulsion Light Treads Treads Light Treads Wheel Wheel Hover Unit Backup Propulsion I Utility Visual Processing Unit Device Heat Sink Storage High-capacity Storage Unit Processor Visual Processing Unit Weapon Light Cannon Ballistic Gun Light Assault Rifle Ballistic Cannon Light Cannon Launcher Grenade Launcher Build | -11 -10 -9 ------- Run | Yrd Mat Mat Slots Evolved 2 | . . 2 Power . | . . . Propulsion . | . . . Utility 1 | . . 1 Weapon 1 | . . 1 Parts Attached 27 | 9 9 9 Power 2 | 1 1 . Engine 2 | 1 1 . Core . | . . . Reactor . | . . . Propulsion 8 | 4 1 3 Treads 3 | . . 3 Leg . | . . . Wheel 5 | 4 1 . Hover . | . . . Flight . | . . . Utility 8 | 2 5 1 Device 3 | 1 1 1 Storage 3 | 1 2 . Processor 2 | . 2 . Hackware . | . . . Protection . | . . . Artifact . | . . . Weapon 9 | 2 2 5 Energy Gun . | . . . Energy Cannon . | . . . Ballistic Gun 3 | 2 . 1 Ballistic Cannon 4 | . 1 3 Launcher 2 | . 1 1 Special Weapon . | . . . Impact Weapon . | . . . Slashing Weapon . | . . . Piercing Weapon . | . . . Special Melee Weapon . | . . . Unidentified Prototypes . | . . . Parts Lost 1 | . . 1 Power . | . . . Propulsion . | . . . Utility . | . . . Weapon 1 | . . 1 Highest Loss Streak 1 | . . 1 To Critical Strikes . | . . . Average Slot Usage (%) 97 | . 99 96 Engine 11 | . 14 11 Treads 12 | . . 17 Wheel 10 | . 28 2 Hover 1 | . . 2 Device 9 | . 7 9 Storage 9 | . 7 11 Processor 11 | . 12 11 Ballistic Gun 9 | . 6 11 Ballistic Cannon 10 | . 8 11 Launcher 9 | . 12 8 Naked Turns . | . . . Heaviest Build 58 | 9 56 58 Greatest Support 40 | 20 26 40 Greatest Overweight (x) 9 | . 2 9 Average Overweight (x) . | . . 1 Largest Inventory Capacity 20 | 5 20 20 Average Capacity 14 | 5 5 20 Most Carried 7 | 5 6 7 Average Carried 4 | 1 4 5 Final Capacity 20 | 5 20 20 Final Carried 6 | 2 5 6 Class Distribution -------------------- 52% | Skirmisher 29% | Mutant 18% | Scavenger-Mutant Dominant Class ---------------- Mutant | -10/Materials Skirmisher | -9/Materials Resources | -11 -10 -9 ----------- Run | Yrd Mat Mat Matter Collected 553 | 387 34 132 Remotely . | . . . Salvage Created 529 | 85 60 384 Parts 52 | 8 9 35 Haulers Intercepted . | . . . Recyclers Shooed . | . . . Parts Field Recycled . | . . . Retrieved Matter . | . . . Parts Self-Destructed . | . . . Prevented . | . . . Kills | -11 -10 -9 ------- Run | Yrd Mat Mat Combat Hostiles Destroyed 16 | 1 4 11 Guns 3 | 1 . 2 Cannons 4 | . . 4 AOE 9 | . 4 5 Classes Destroyed 8 | 3 2 3 Worker 2 | 1 . 1 Builder 2 | . . 2 Tunneler 3 | 2 . 1 Operator 1 | . . 1 Watcher 5 | . 2 3 Swarmer 7 | . 3 4 Grunt 7 | 1 1 5 Sentry 2 | . . 2 Best Kill Streak 8 | 3 3 8 Combat Bots Only 6 | 1 3 6 Max Kills in Single Turn 3 | 1 3 3 Gunslinging . | . . . Exploded 3 | . 3 1 Melee . | . . . Uniques/NPCs Destroyed . | . . . Combat | -11 -10 -9 -------- Run | Yrd Mat Mat Hostile Shots Fired 106 | 6 15 85 Missed 45 | 1 8 36 Damage Taken 647 | 41 54 552 Core 65 | 16 15 34 Absorbed by Shields . | . . . Ignored by Resistances 193 | 11 18 164 Regen/Repaired (Parts) 112 | . . 112 Core Remaining (%) 90 | 93 87 . Volleys Fired 49 | 10 16 23 Largest 3 | 2 2 3 Hottest 90 | 40 65 90 Shots Fired 100 | 20 21 59 Gun 46 | 20 3 23 Cannon 37 | . 13 24 Launcher 17 | . 5 12 Special . | . . . Kinetic 83 | 20 16 47 Thermal . | . . . Explosive 17 | . 5 12 Electromagnetic . | . . . Robot Hit Streak 12 | 12 4 10 Robot Miss Streak 3 | 1 2 3 Penetration Max . | . . . Secondary Targets . | . . . Shots Hit Robots 66 | 15 10 41 Core Hits 47 | 6 7 34 Critical Kills . | . . . Critical Parts Destroyed 1 | . 1 . Critical Strikes 3 | . 1 2 Destroy 1 | . 1 . Blast 2 | . . 2 Melee Attacks . | . . . Impact . | . . . Slashing . | . . . Piercing . | . . . Sneak Attacks . | . . . Combat Hostiles . | . . . Follow-up Attacks . | . . . Damage Inflicted 1834 | 162 405 1267 Guns 335 | 162 6 167 Cannons 441 | . 144 297 Explosions 1058 | . 255 803 Melee . | . . . Ramming . | . . . Kinetic 776 | 162 150 464 Thermal . | . . . Explosive 1058 | . 255 803 Electromagnetic . | . . . Impact . | . . . Slashing . | . . . Piercing . | . . . Highest Corruption . | . . . Average Corruption . | . . . Corruption Purged . | . . . Corruption Blocked . | . . . Overload Shots . | . . . Overflow Damage 53 | . 19 34 Projectiles . | . . . Explosions 53 | . 19 34 Melee . | . . . Knockbacks . | . . . Impact . | . . . Kinetic . | . . . Secondary . | . . . Self-Inflicted Damage 65 | . . 65 Shots 4 | . . 4 Rammed . | . . . Targets Rammed . | . . . Kicked . | . . . Crushed . | . . . Highest Temperature 35 | 6 10 35 Average Temperature 9 | 6 4 13 Received Heat Transfer 324 | 30 30 264 Siege Activations . | . . . Robots Corrupted . | . . . Combat Hostiles . | . . . Parts Fried . | . . . Impact Corruptions . | . . . Robots Melted . | . . . Combat Hostiles . | . . . Parts Melted . | . . . Heat Transferred . | . . . Parts Sabotaged . | . . . Parts Stolen . | . . . Parts Stripped . | . . . Power Chain Reactions . | . . . Alert | -11 -10 -9 ------- Run | Yrd Mat Mat Peak Influence 409 | 35 218 409 Initial 78 | . 19 78 Average 164 | 11 145 205 Maximum Alert Level 2 | . 1 2 Low Security (%) 70 | 100 62 67 Level 1 28 | . 37 29 Level 2 1 | . . 2 Level 3 . | . . . Level 4 . | . . . Level 5 . | . . . High Security . | . . . Max Security . | . . . Squads Dispatched 3 | . 2 1 Investigation 2 | . 2 . Extermination . | . . . Reinforcement 1 | . . 1 Assault . | . . . Garrison . | . . . Intercept . | . . . Searches Triggered . | . . . Construction Impeded 1 | . . 1 Haulers Reinforced . | . . . Active Scanning Responses . | . . . Cargo Convoy Interrupts . | . . . Stealth | -11 -10 -9 --------- Run | Yrd Mat Mat Distress Signals 1 | . . 1 Communications Jammed . | . . . Distress Signals . | . . . Times Spotted 29 | 1 8 20 Peak Tracking Total 7 | 1 3 7 Tactical Retreats 3 | . 1 2 Traps | -11 -10 -9 ------- Run | Yrd Mat Mat Traps Triggered 1 | . 1 . Indirectly . | . . . Trap Hack Attempts . | . . . Triggered . | . . . Disarmed . | . . . Reprogrammed . | . . . Reused . | . . . Traps Extracted . | . . . Installed . | . . . Triggered . | . . . Machines | -11 -10 -9 ---------- Run | Yrd Mat Mat Machines Disabled 4 | . 2 2 Max in Single Turn 1 | . 1 1 Machines Repaired . | . . . Machines Dismantled . | . . . Machines Sabotaged . | . . . Overloaded Fab Kills . | . . . Hacking | -11 -10 -9 --------- Run | Yrd Mat Mat Machines Accessed 3 | . 1 2 Terminals 1 | . 1 . Fabricators . | . . . Repair Stations 1 | . . 1 Recycling Units . | . . . Scanalyzers 1 | . . 1 Garrison Access . | . . . Total Hacks 15 | . 1 14 Successful 14 | . 1 13 Failed 1 | . . 1 Catastrophic . | . . . Database Lockouts . | . . . Manual . | . . . Terminals 1 | . 1 . Fabricators . | . . . Repair Stations 12 | . . 12 Recycling Units . | . . . Scanalyzers 2 | . . 2 Garrison Access . | . . . Terminal Hacks 1 | . 1 . Registered Components 1 | . 1 . Fabricator Hacks . | . . . Repair Station Hacks 11 | . . 11 Scan Component 5 | . . 5 Repair 5 | . . 5 Refit 1 | . . 1 Recycling Unit Hacks . | . . . Scanalyzer 2 | . . 2 Insert Component 1 | . . 1 Analyze 1 | . . 1 Garrison Access Hacks . | . . . Unauthorized Hacks . | . . . Terminals . | . . . Fabricators . | . . . Repair Stations . | . . . Recycling Units . | . . . Scanalyzers . | . . . Garrison Access . | . . . Data Cores Recovered . | . . . Used . | . . . Hacking Detections 1 | . . 1 Full Trace Events . | . . . Feedback Events . | . . . Feedback Blocked . | . . . Robot Schematics Acquired . | . . . Robots Built . | . . . Authchips . | . . . Time . | . . . Total Robot Build Rating . | . . . Part Schematics Acquired 1 | . . 1 Parts Built . | . . . Authchips . | . . . Time . | . . . Total Part Build Rating . | . . . Parts Repaired 5 | . . 5 Time 130 | . . 130 Parts Recycled . | . . . Recycled Matter . | . . . Retrieved Matter . | . . . Retrieved Components . | . . . Parts Scanalyzed 1 | . . 1 Part Schematics Acquired 1 | . . 1 Parts Damaged . | . . . Bothacking | -11 -10 -9 ------------ Run | Yrd Mat Mat Used RIF Installer . | . . . Robots Hacked . | . . . Non-combat . | . . . Combat . | . . . Robot Hacks Applied . | . . . Relay Couplers Released . | . . . Fabnet Peak Effective % . | . . . Robots Rewired . | . . . Allies Hacked . | . . . Hacks Repelled . | . . . Allies | -11 -10 -9 -------- Run | Yrd Mat Mat Total Allies . | . . . Largest Group . | . . . Highest-Rated Group . | . . . Highest-Rated Ally . | . . . Total Orders . | . . . Ally Attacks . | . . . Total Damage . | . . . Kills . | . . . Allies Corrupted . | . . . Allies Melted . | . . . Intel | -11 -10 -9 ------- Run | Yrd Mat Mat Robot Analysis Total . | . . . Derelict Logs Recovered . | . . . Drone Launches . | . . . Drone Recoveries . | . . . Exploration | -11 -10 -9 ------------- Run | Yrd Mat Mat Turns Passed 887 | 114 232 541 Spaces Moved 442 | 90 188 164 Core 21 | 21 . . Treads 116 | . . 116 Legs . | . . . Wheels 292 | 69 188 35 Hover 13 | . . 13 Flight . | . . . Fastest Speed 50 | 50 80 120 Average Speed 149 | 73 88 260 Slowest Speed 820 | 80 120 820 Overloaded Moves . | . . . Propulsion Burnouts . | . . . Robots Hopped . | . . . Cave-ins Triggered . | . . . Exploration Rate (%) 19 | 5 34 19 Regions Visited 2 Branch Regions . Pre-discovered Areas . | . . . Known Exits Taken . | . . . Unknown Exits Taken 2 | 1 1 . Scrap Searched . | . . . Spaces Dug . | . . . Terrain Destroyed 125 | . 16 109 Melee . | . . . Projectile . | . . . AOE 125 | . 16 109 Terrain Rammed . | . . . Walls Destroyed . | . . . Machines Disabled . | . . . Actions | -11 -10 -9 --------- Run | Yrd Mat Mat Total 589 | 121 236 232 Wait 24 | . . 24 Move 440 | 89 187 164 Hop . | . . . Pick Up 33 | 11 12 10 Fast Attach 1 | . 1 . Attach 17 | 9 2 6 Detach 2 | . 2 . Swap 9 | . 6 3 Drop 14 | 2 10 2 Fire 49 | 10 16 23 Melee . | . . . Ram . | . . . Kick . | . . . Crush . | . . . Escape Stasis . | . . . Rewire . | . . . Trap . | . . . Miscellaneous . | . . . Route ------- -11/Scrapyard -10/Materials -9/Materials History --------- Turn | Location | Event 2 | -11/Scrapyard | Met Revision 17 62 | -11/Scrapyard | Discovered new exit (range 8) 115 | -11/Scrapyard | Entered Materials 222 | -10/Materials | Met 8R-AWN 330 | -10/Materials | Discovered new exit (range 11) 347 | -10/Materials | Entered another Materials area 347 | -9/Materials | Evolved 2 slots: Utility x1, Weapon x1 552 | -9/Materials | Repaired Lgt. Cannon 552 | -9/Materials | Repaired Lgt. Treads 578 | -9/Materials | Repaired Grenade Launcher 640 | -9/Materials | Repaired Lgt. Treads 690 | -9/Materials | Repaired Lgt. Cannon 888 | -9/Materials | Self-destructed Last Messages --------------- U-05 Engineer lays Concrete. K-01 Serf collects debris. U-05 Engineer lays Concrete. U-05 Engineer builds a Wall. U-05 Engineer builds a Door. [Achievement: Oops] Acquired 7 matter. K-01 Serf collects debris. U-05 Engineer lays Concrete. K-01 Serf collects debris. U-05 Engineer lays Concrete. U-05 Engineer builds a Wall. U-05 Engineer lays Concrete. G-34 Mercenary suffers critical hit (Burn). U-05 Engineer lays Concrete. M-13 Machinist repairs G-47 Trooper. M-13 Machinist destroyed. U-05 Engineer lays Concrete. K-01 Serf collects debris. Acquired Shield Generator. Map ----- +----------------------------------------------------+ | ?????????????????????????????????????????????????? | | ?????????????????????????????????????????????????? | | ?????????????????????????????????????????????????? | | ?????????????????????????????????????????????????? | | ?????????????????????????????????????????????????? | | ?????????????????????????????????????????????????? | | ?????????????????????????????????????????????????? | | ??????????????????????????????????? #????????????? | | ?????????????????????????????????? #????????????? | | ????????????????????????????????? ###??????????? | | ??????????????????????????????" ? ??????????? | | ??????????????????????????????S # ???????????? | | ??????????????????????????????? + ???????????? | | ??????????????????????????????? # #???????????? | | ??????????????????????????????? #####???????? | | ??????????????????????????????? ????????? | | ???????????????????????????????? %* ?????????? | | ???????????????????????????????? = ??????????? | | ?????????????????????########### = ???????????? | | ?????????????????????# # *%#????????????? | | ?????????????????????# """ ## ##???????????? | | ?????????????????????# "T" # ############? | | ?????????????????????# # | | ?????????????######### g + ! % | | ????????? k k tk """ # !%! | | ?????????????######### @ """ # [= ##########??? | | ?????????????????????# """ ## ##???????????? | | ?????????????????????############ #????????????? | | ????????????????????????# """ ?#$= ##???????????? | | ????????????????????????# """ T /* % #???????????? | | ????????????????????????# """ # #???????????? | | ????????????????????????# !!# ! #???????????? | | ????????????????????????# !!# = #???????????? | | ????????????????????????# ####### =% #???????????? | | ??????????????????????########### [ #???????????? | | ??????????????????????# #???????????? | | ??????????????????????# """ % #???????????? | | ??????????????????????# """"" # #???????????? | | ??????????????????????# """"" ##???????????? | | ??????????????????????# "" "" # #???########## | | ??????????????# ?????# ######### | | ??????????????? "???# # ## | | ????????????????? "??# # ## """ | | ??????????????????? ## # #+# # """" ## """"" | | ????????????????????# ## """" ## """"" | | ???????????????????## ## # # """" ## """"" | | ???????????????????# # # ## """ | | ???????????????????# ### ## | | ???????????????????# # # ######+#### | | ???????????????????## # ##### #? | +----------------------------------------------------+ Best States ------------- Heat Dissipation 38 Energy Generation 12 Energy Capacity 265 Matter Stores 387 Matter Capacity 400 Sight Range 18 Terrain Scan Density 10 ECM Strength 1 Resistance: KI 20 Resistance: TH 20 Resistance: EX 20 Resistance: EM 20 Resistance: I 20 Resistance: S 20 Resistance: P 20 Evasion (%) 50 Recoil Reduction 2 Offensive Hacking 10 Item Schematics ----------------- Lgt. Ion Engine | -9/Materials | Scanalyzed Robot Schematics ------------------ None Fabricated ------------ Nothing Alien Tech Used ----------------- None Achievements -------------- Oops Part-time Mechanic Challenges ------------ None Game ------ Seed DirtyIntegrityCleaver Manual? 0 Play Time 00:19:03 Cumulative 0.7 hours Start 2024.05.23 @ 01:22:14 End 2024.05.23 @ 01:38:38 Sessions 1 Manual Loads 0 Difficulty Adventurer Special Mode None Game No. 2 Rogue 0 Adventurer 2 Explorer 0 Win Type - Total 0 Types 0/0/0/0/0/0/0/0/0 Lore% 0 Gallery% 2 Achievement% 3 Wizard Run 0 Options --------- Layout 0 ASCII 0 Keyboard 0 Movement Mouse Keybinds 0 Fullscreen 2 Font 18/SmallcapsGlow Map View 183x50 Zoom Use 0% Tactical HUD 0 Map Filters NONE Filters NONE Steam 1 RUN: 727fda71-11f1-425c-a7b7-8b2f9f58b231